[Event "Titled Tuesday Blitz May 2 Late 2023"]
[White "Willathgamuwa, Kevin"]
[Black "Koziorowicz, Michal"]
[WhiteFideId "3214168"]
[BlackFideId "21809194"]
[WhiteElo "1962"]
[BlackElo "2255"]
[Result "0-1"]
[Round "01"]
[TimeControl "180+2"]
[Date "2023.05.02"]
[WhiteClock "0:00:00"]
[BlackClock "0:00:00"]

1. e4 {[%clk 0:00:01]}  c5 {[%clk 0:00:01]} 2. c3 {[%clk 0:00:01]}  g6 {[%clk 0:00:01]} 3. d4 {[%clk 0:00:01]}  cxd4 {[%clk 0:00:01]} 4. cxd4 {[%clk 0:00:01]}  Bg7 {[%clk 0:00:01]} 5. Nc3 {[%clk 0:00:01]}  d6 {[%clk 0:00:01]} 6. Nf3 {[%clk 0:00:01]}  Nc6 {[%clk 0:00:01]} 7. h3 {[%clk 0:00:01]}  Nf6 {[%clk 0:00:01]} 8. d5 {[%clk 0:00:01]}  Ne5 {[%clk 0:00:01]} 9. Nxe5 {[%clk 0:00:01]}  dxe5 {[%clk 0:00:01]} 10. Bb5+ {[%clk 0:00:01]}  Bd7 {[%clk 0:00:01]} 11. Bc4 {[%clk 0:00:01]}  O-O {[%clk 0:00:01]} 12. O-O {[%clk 0:00:01]}  Rc8 {[%clk 0:00:01]} 13. Qe2 {[%clk 0:00:01]}  Ne8 {[%clk 0:00:01]} 14. Be3 {[%clk 0:00:01]}  Nd6 {[%clk 0:00:01]} 15. Bb3 {[%clk 0:00:01]}  b6 {[%clk 0:00:01]} 16. a4 {[%clk 0:00:01]}  Nb7 {[%clk 0:00:01]} 17. Nb5 {[%clk 0:00:01]}  Nc5 {[%clk 0:00:01]} 18. Bc2 {[%clk 0:00:01]}  Bxb5 {[%clk 0:00:01]} 19. axb5 {[%clk 0:00:01]}  Qd7 {[%clk 0:00:01]} 20. b4 {[%clk 0:00:01]}  Nb7 {[%clk 0:00:01]} 21. Rxa7 {[%clk 0:00:01]}  Rb8 {[%clk 0:00:01]} 22. Bxb6 {[%clk 0:00:01]}  Qd6 {[%clk 0:00:01]} 23. Ra6 {[%clk 0:00:01]}  Qxb4 {[%clk 0:00:01]} 24. Rb1 {[%clk 0:00:00]}  Qc3 {[%clk 0:00:01]} 25. Rb3 {[%clk 0:00:00]}  Qc8 {[%clk 0:00:01]} 26. Ba7 {[%clk 0:00:00]}  Ra8 {[%clk 0:00:01]} 27. Rc6 {[%clk 0:00:00]}  Qd7 {[%clk 0:00:01]} 28. Ra3 {[%clk 0:00:00]}  Nd6 {[%clk 0:00:01]} 29. Bd3 {[%clk 0:00:00]}  Rxa7 {[%clk 0:00:01]} 30. Rxa7 {[%clk 0:00:00]}  Qxa7 {[%clk 0:00:01]} 31. b6 {[%clk 0:00:00]}  Qa1+ {[%clk 0:00:01]} 32. Kh2 {[%clk 0:00:00]}  f5 {[%clk 0:00:01]} 33. Rc7 {[%clk 0:00:00]}  fxe4 {[%clk 0:00:01]} 34. Bxe4 {[%clk 0:00:00]}  Qd4 {[%clk 0:00:01]} 35. b7 {[%clk 0:00:00]}  Qb6 {[%clk 0:00:00]} 36. Rxe7 {[%clk 0:00:00]}  Nxb7 {[%clk 0:00:00]} 37. Qc4 {[%clk 0:00:00]}  Nd6 {[%clk 0:00:00]} 38. Qc6 {[%clk 0:00:00]}  Qxc6 {[%clk 0:00:00]} 39. dxc6 {[%clk 0:00:00]}  Nxe4 {[%clk 0:00:00]} 40. c7 {[%clk 0:00:00]}  Nd6 {[%clk 0:00:00]} 41. Rd7 {[%clk 0:00:00]}  Nc8 {[%clk 0:00:00]} 42. Rd8 {[%clk 0:00:00]}  Bf6 {[%clk 0:00:00]} 0-1


[Site "https://www.chess.com"]

[Event "Titled Tuesday Blitz May 2 Late 2023"]
[White "Saveliev, Alexei"]
[Black "Rodriguez Santiago, Jaime"]
[WhiteFideId "24128546"]
[BlackFideId "3100898"]
[WhiteElo "2271"]
[BlackElo "2025"]
[Result "1-0"]
[Round "01"]
[TimeControl "180+2"]
[Date "2023.05.02"]
[WhiteClock "0:00:00"]
[BlackClock "0:00:00"]

1. c4 {[%clk 0:00:01]}  Nf6 {[%clk 0:00:01]} 2. Nc3 {[%clk 0:00:01]}  e6 {[%clk 0:00:01]} 3. e4 {[%clk 0:00:01]}  d5 {[%clk 0:00:01]} 4. e5 {[%clk 0:00:01]}  d4 {[%clk 0:00:01]} 5. exf6 {[%clk 0:00:01]}  dxc3 {[%clk 0:00:01]} 6. bxc3 {[%clk 0:00:01]}  Qxf6 {[%clk 0:00:01]} 7. d4 {[%clk 0:00:01]}  c5 {[%clk 0:00:01]} 8. Nf3 {[%clk 0:00:01]}  h6 {[%clk 0:00:01]} 9. Bd3 {[%clk 0:00:01]}  cxd4 {[%clk 0:00:01]} 10. cxd4 {[%clk 0:00:01]}  Bb4+ {[%clk 0:00:01]} 11. Bd2 {[%clk 0:00:01]}  Bxd2+ {[%clk 0:00:01]} 12. Qxd2 {[%clk 0:00:01]}  O-O {[%clk 0:00:01]} 13. O-O {[%clk 0:00:01]}  Nc6 {[%clk 0:00:01]} 14. Be4 {[%clk 0:00:01]}  Rd8 {[%clk 0:00:01]} 15. Rfd1 {[%clk 0:00:01]}  Bd7 {[%clk 0:00:01]} 16. Rab1 {[%clk 0:00:01]}  Rab8 {[%clk 0:00:01]} 17. Qe3 {[%clk 0:00:01]}  Be8 {[%clk 0:00:01]} 18. d5 {[%clk 0:00:01]}  exd5 {[%clk 0:00:01]} 19. cxd5 {[%clk 0:00:01]}  Na5 {[%clk 0:00:00]} 20. Qxa7 {[%clk 0:00:01]}  Ra8 {[%clk 0:00:00]} 21. Qc5 {[%clk 0:00:01]}  b5 {[%clk 0:00:00]} 22. Bd3 {[%clk 0:00:01]}  Rac8 {[%clk 0:00:00]} 23. Qe3 {[%clk 0:00:00]}  Nc4 {[%clk 0:00:00]} 24. Qe2 {[%clk 0:00:00]}  g6 {[%clk 0:00:00]} 25. Be4 {[%clk 0:00:00]}  Nd6 {[%clk 0:00:00]} 26. Bc2 {[%clk 0:00:00]}  Rc5 {[%clk 0:00:00]} 27. Bb3 {[%clk 0:00:00]}  Rdc8 {[%clk 0:00:00]} 28. h3 {[%clk 0:00:00]}  Kg7 {[%clk 0:00:00]} 29. Ne5 {[%clk 0:00:00]}  Rc3 {[%clk 0:00:00]} 30. Ng4 {[%clk 0:00:00]}  Qg5 {[%clk 0:00:00]} 31. Ne3 {[%clk 0:00:00]}  Bd7 {[%clk 0:00:00]} 32. Qb2 {[%clk 0:00:00]}  Kh7 {[%clk 0:00:00]} 33. Kh1 {[%clk 0:00:00]}  Ne4 {[%clk 0:00:00]} 34. Qe2 {[%clk 0:00:00]}  Nxf2+ {[%clk 0:00:00]} 35. Qxf2 {[%clk 0:00:00]}  Rxe3 {[%clk 0:00:00]} 36. Qxf7+ {[%clk 0:00:00]}  Kh8 {[%clk 0:00:00]} 37. Qxd7 {[%clk 0:00:00]}  Rf8 {[%clk 0:00:00]} 38. Rf1 {[%clk 0:00:00]}  Rfe8 {[%clk 0:00:00]} 39. d6 {[%clk 0:00:00]}  Re2 {[%clk 0:00:00]} 40. Qg4 {[%clk 0:00:00]}  Qe5 {[%clk 0:00:00]} 41. d7 {[%clk 0:00:00]} 1-0


[Site "https://www.chess.com"]

[Event "Titled Tuesday Blitz May 2 Late 2023"]
[White "Ansh M Shah"]
[Black "Ambartsumova, Karina"]
[WhiteFideId "25033379"]
[BlackFideId "4166299"]
[WhiteElo "2084"]
[BlackElo "2240"]
[Result "0-1"]
[Round "01"]
[TimeControl "180+2"]
[Date "2023.05.02"]
[WhiteClock "0:00:00"]
[BlackClock "0:00:01"]

1. d4 {[%clk 0:00:01]}  Nf6 {[%clk 0:00:01]} 2. c4 {[%clk 0:00:01]}  g6 {[%clk 0:00:01]} 3. h4 {[%clk 0:00:01]}  Bg7 {[%clk 0:00:01]} 4. Nc3 {[%clk 0:00:01]}  d6 {[%clk 0:00:01]} 5. e4 {[%clk 0:00:01]}  O-O {[%clk 0:00:01]} 6. Be2 {[%clk 0:00:01]}  e5 {[%clk 0:00:01]} 7. d5 {[%clk 0:00:01]}  c6 {[%clk 0:00:01]} 8. h5 {[%clk 0:00:01]}  cxd5 {[%clk 0:00:01]} 9. cxd5 {[%clk 0:00:01]}  Qa5 {[%clk 0:00:01]} 10. Bd2 {[%clk 0:00:01]}  Na6 {[%clk 0:00:01]} 11. h6 {[%clk 0:00:01]}  Bh8 {[%clk 0:00:01]} 12. f3 {[%clk 0:00:01]}  Qb6 {[%clk 0:00:01]} 13. Qc1 {[%clk 0:00:01]}  Nc5 {[%clk 0:00:01]} 14. Be3 {[%clk 0:00:01]}  Bd7 {[%clk 0:00:01]} 15. Qd2 {[%clk 0:00:01]}  Rac8 {[%clk 0:00:01]} 16. Nh3 {[%clk 0:00:01]}  Nh5 {[%clk 0:00:01]} 17. O-O-O {[%clk 0:00:01]}  Ng3 {[%clk 0:00:01]} 18. Rhe1 {[%clk 0:00:01]}  Nxe2+ {[%clk 0:00:01]} 19. Rxe2 {[%clk 0:00:01]}  Bb5 {[%clk 0:00:01]} 20. Nxb5 {[%clk 0:00:00]}  Nb3+ {[%clk 0:00:01]} 21. Kb1 {[%clk 0:00:00]}  Nxd2+ {[%clk 0:00:01]} 0-1


[Site "https://www.chess.com"]

[Event "Titled Tuesday Blitz May 2 Late 2023"]
[White "Romero Ruscalleda, Josep"]
[Black "Domingo Nunez, Ruben"]
[WhiteFideId "2231859"]
[BlackFideId "22245570"]
[WhiteElo "2183"]
[BlackElo "2404"]
[Result "0-1"]
[Round "01"]
[TimeControl "180+2"]
[Date "2023.05.02"]
[WhiteClock "0:00:00"]
[BlackClock "0:00:00"]

1. e4 {[%clk 0:00:01]}  e5 {[%clk 0:00:01]} 2. Nf3 {[%clk 0:00:01]}  d6 {[%clk 0:00:01]} 3. d4 {[%clk 0:00:01]}  exd4 {[%clk 0:00:01]} 4. Nxd4 {[%clk 0:00:01]}  Nf6 {[%clk 0:00:01]} 5. Nc3 {[%clk 0:00:01]}  Be7 {[%clk 0:00:01]} 6. Be2 {[%clk 0:00:01]}  O-O {[%clk 0:00:01]} 7. O-O {[%clk 0:00:01]}  Re8 {[%clk 0:00:01]} 8. f4 {[%clk 0:00:01]}  Bf8 {[%clk 0:00:01]} 9. Bf3 {[%clk 0:00:01]}  c6 {[%clk 0:00:01]} 10. a4 {[%clk 0:00:01]}  a5 {[%clk 0:00:01]} 11. Be3 {[%clk 0:00:01]}  Qc7 {[%clk 0:00:01]} 12. g4 {[%clk 0:00:01]}  Bd7 {[%clk 0:00:01]} 13. g5 {[%clk 0:00:01]}  Nd5 {[%clk 0:00:01]} 14. Nxd5 {[%clk 0:00:01]}  cxd5 {[%clk 0:00:01]} 15. Qd3 {[%clk 0:00:01]}  dxe4 {[%clk 0:00:01]} 16. Bxe4 {[%clk 0:00:01]}  g6 {[%clk 0:00:01]} 17. Nb5 {[%clk 0:00:01]}  Bxb5 {[%clk 0:00:01]} 18. axb5 {[%clk 0:00:01]}  Nd7 {[%clk 0:00:01]} 19. Bd5 {[%clk 0:00:00]}  Nc5 {[%clk 0:00:01]} 20. Qc3 {[%clk 0:00:00]}  Qd7 {[%clk 0:00:00]} 21. Bd4 {[%clk 0:00:00]}  Qxb5 {[%clk 0:00:00]} 22. Bc4 {[%clk 0:00:00]}  Qd7 {[%clk 0:00:00]} 23. Bd5 {[%clk 0:00:00]}  Re2 {[%clk 0:00:00]} 24. Rf2 {[%clk 0:00:00]}  Rxf2 {[%clk 0:00:00]} 25. Bxf2 {[%clk 0:00:00]}  Qg4+ {[%clk 0:00:00]} 26. Qg3 {[%clk 0:00:00]}  Qf5 {[%clk 0:00:00]} 27. Bc4 {[%clk 0:00:00]}  Qxc2 {[%clk 0:00:00]} 28. b3 {[%clk 0:00:00]}  Ne4 {[%clk 0:00:00]} 29. Qg2 {[%clk 0:00:00]}  Bg7 {[%clk 0:00:00]} 30. Re1 {[%clk 0:00:00]}  Nxf2 {[%clk 0:00:00]} 31. Qxf2 {[%clk 0:00:00]}  Qc3 {[%clk 0:00:00]} 32. Rd1 {[%clk 0:00:00]}  b5 {[%clk 0:00:00]} 33. Bd5 {[%clk 0:00:00]}  Re8 {[%clk 0:00:00]} 34. Qg2 {[%clk 0:00:00]}  Bd4+ {[%clk 0:00:00]} 35. Kh1 {[%clk 0:00:00]}  Re1+ {[%clk 0:00:00]} 36. Rxe1 {[%clk 0:00:00]}  Qxe1+ {[%clk 0:00:00]} 37. Qf1 {[%clk 0:00:00]}  Qxf1# {[%clk 0:00:00]} 0-1


[Site "https://www.chess.com"]

[Event "Titled Tuesday Blitz May 2 Late 2023"]
[White "Wang, Alexander J"]
[Black "Kanakaris, Georgios"]
[WhiteFideId "30955270"]
[BlackFideId "4209460"]
[WhiteElo "1815"]
[BlackElo "2291"]
[Result "0-1"]
[Round "01"]
[TimeControl "180+2"]
[Date "2023.05.02"]
[WhiteClock "0:00:00"]
[BlackClock "0:00:00"]

1. e4 {[%clk 0:00:01]}  e6 {[%clk 0:00:01]} 2. d4 {[%clk 0:00:01]}  d5 {[%clk 0:00:01]} 3. e5 {[%clk 0:00:01]}  Bd7 {[%clk 0:00:01]} 4. c3 {[%clk 0:00:01]}  a6 {[%clk 0:00:01]} 5. f4 {[%clk 0:00:01]}  c5 {[%clk 0:00:01]} 6. Nf3 {[%clk 0:00:01]}  Nh6 {[%clk 0:00:01]} 7. Be2 {[%clk 0:00:01]}  Bb5 {[%clk 0:00:01]} 8. O-O {[%clk 0:00:01]}  Bxe2 {[%clk 0:00:01]} 9. Qxe2 {[%clk 0:00:01]}  Nc6 {[%clk 0:00:01]} 10. Be3 {[%clk 0:00:01]}  Qb6 {[%clk 0:00:01]} 11. Rd1 {[%clk 0:00:01]}  Ng4 {[%clk 0:00:01]} 12. b3 {[%clk 0:00:01]}  Nxe3 {[%clk 0:00:01]} 13. Qxe3 {[%clk 0:00:01]}  Rc8 {[%clk 0:00:01]} 14. Nbd2 {[%clk 0:00:01]}  cxd4 {[%clk 0:00:01]} 15. cxd4 {[%clk 0:00:01]}  Ba3 {[%clk 0:00:01]} 16. Rab1 {[%clk 0:00:01]}  Nb4 {[%clk 0:00:01]} 17. Nf1 {[%clk 0:00:00]}  O-O {[%clk 0:00:00]} 18. f5 {[%clk 0:00:00]}  exf5 {[%clk 0:00:00]} 19. Qg5 {[%clk 0:00:00]}  Qg6 {[%clk 0:00:00]} 20. Qxg6 {[%clk 0:00:00]}  hxg6 {[%clk 0:00:00]} 21. Ne3 {[%clk 0:00:00]}  Rc3 {[%clk 0:00:00]} 22. Kf2 {[%clk 0:00:00]}  Rfc8 {[%clk 0:00:00]} 23. g3 {[%clk 0:00:00]}  Bc1 {[%clk 0:00:00]} 24. Nd2 {[%clk 0:00:00]}  Kf8 {[%clk 0:00:00]} 25. Ke2 {[%clk 0:00:00]}  Ba3 {[%clk 0:00:00]} 26. h3 {[%clk 0:00:00]}  Rd3 {[%clk 0:00:00]} 27. g4 {[%clk 0:00:00]}  f4 {[%clk 0:00:00]} 28. Ng2 {[%clk 0:00:00]}  g5 {[%clk 0:00:00]} 29. h4 {[%clk 0:00:00]}  Rc2 {[%clk 0:00:00]} 30. hxg5 {[%clk 0:00:00]}  f3+ {[%clk 0:00:00]} 31. Kf2 {[%clk 0:00:00]}  fxg2 {[%clk 0:00:00]} 32. Kxg2 {[%clk 0:00:00]} 0-1


[Site "https://www.chess.com"]

[Event "Titled Tuesday Blitz May 2 Late 2023"]
[White "Grinev, Valeriy"]
[Black "Rose, Felix"]
[WhiteFideId "14117517"]
[BlackFideId "5105722"]
[WhiteElo "2366"]
[BlackElo "2039"]
[Result "1-0"]
[Round "01"]
[TimeControl "180+2"]
[Date "2023.05.02"]
[WhiteClock "0:00:00"]
[BlackClock "0:00:00"]

1. d4 {[%clk 0:00:01]}  Nf6 {[%clk 0:00:01]} 2. c4 {[%clk 0:00:01]}  e6 {[%clk 0:00:01]} 3. Nc3 {[%clk 0:00:01]}  d5 {[%clk 0:00:01]} 4. cxd5 {[%clk 0:00:01]}  exd5 {[%clk 0:00:01]} 5. Bg5 {[%clk 0:00:01]}  c6 {[%clk 0:00:01]} 6. e3 {[%clk 0:00:01]}  Be7 {[%clk 0:00:01]} 7. Bd3 {[%clk 0:00:01]}  Nbd7 {[%clk 0:00:01]} 8. Qc2 {[%clk 0:00:01]}  h6 {[%clk 0:00:01]} 9. Bh4 {[%clk 0:00:01]}  Nh5 {[%clk 0:00:01]} 10. Bxe7 {[%clk 0:00:01]}  Qxe7 {[%clk 0:00:01]} 11. Nge2 {[%clk 0:00:01]}  Nb6 {[%clk 0:00:01]} 12. O-O {[%clk 0:00:01]}  O-O {[%clk 0:00:01]} 13. Rab1 {[%clk 0:00:01]}  a5 {[%clk 0:00:01]} 14. Rbe1 {[%clk 0:00:01]}  Bd7 {[%clk 0:00:01]} 15. Nc1 {[%clk 0:00:01]}  Rae8 {[%clk 0:00:01]} 16. f3 {[%clk 0:00:01]}  c5 {[%clk 0:00:01]} 17. dxc5 {[%clk 0:00:01]}  Qxc5 {[%clk 0:00:01]} 18. Nb3 {[%clk 0:00:01]}  Qb4 {[%clk 0:00:01]} 19. a3 {[%clk 0:00:01]}  Qh4 {[%clk 0:00:00]} 20. Nxa5 {[%clk 0:00:01]}  d4 {[%clk 0:00:00]} 21. Ne4 {[%clk 0:00:01]}  dxe3 {[%clk 0:00:00]} 22. g3 {[%clk 0:00:01]}  Qe7 {[%clk 0:00:00]} 23. Qc5 {[%clk 0:00:01]}  Qxc5 {[%clk 0:00:00]} 24. Nxc5 {[%clk 0:00:01]}  Bh3 {[%clk 0:00:00]} 25. Naxb7 {[%clk 0:00:00]}  Bxf1 {[%clk 0:00:00]} 26. Kxf1 {[%clk 0:00:00]}  Re7 {[%clk 0:00:00]} 27. Nd6 {[%clk 0:00:00]}  Rd8 {[%clk 0:00:00]} 28. Nf5 {[%clk 0:00:00]}  Rc7 {[%clk 0:00:00]} 29. b4 {[%clk 0:00:00]}  Nd5 {[%clk 0:00:00]} 30. Nxe3 {[%clk 0:00:00]}  Nxe3+ {[%clk 0:00:00]} 31. Rxe3 {[%clk 0:00:00]}  Nf6 {[%clk 0:00:00]} 32. Bc4 {[%clk 0:00:00]}  Rd2 {[%clk 0:00:00]} 33. Rd3 {[%clk 0:00:00]}  Rxh2 {[%clk 0:00:00]} 34. g4 {[%clk 0:00:00]}  g6 {[%clk 0:00:00]} 35. a4 {[%clk 0:00:00]}  Kg7 {[%clk 0:00:00]} 36. a5 {[%clk 0:00:00]}  Re7 {[%clk 0:00:00]} 37. Ra3 {[%clk 0:00:00]}  Ree2 {[%clk 0:00:00]} 38. Bxe2 {[%clk 0:00:00]} 1-0


[Site "https://www.chess.com"]

[Event "Titled Tuesday Blitz May 2 Late 2023"]
[White "Kjartansson, David"]
[Black "Kostiukov, Alexandr"]
[WhiteFideId "2301130"]
[BlackFideId "14108100"]
[WhiteElo "2333"]
[BlackElo "2202"]
[Result "1-0"]
[Round "01"]
[TimeControl "180+2"]
[Date "2023.05.02"]
[WhiteClock "0:00:00"]
[BlackClock "0:00:00"]

1. d4 {[%clk 0:00:01]}  g6 {[%clk 0:00:01]} 2. Nc3 {[%clk 0:00:01]}  Bg7 {[%clk 0:00:01]} 3. Bf4 {[%clk 0:00:01]}  d6 {[%clk 0:00:01]} 4. e3 {[%clk 0:00:01]}  e5 {[%clk 0:00:01]} 5. dxe5 {[%clk 0:00:01]}  dxe5 {[%clk 0:00:01]} 6. Qxd8+ {[%clk 0:00:01]}  Kxd8 {[%clk 0:00:01]} 7. O-O-O+ {[%clk 0:00:01]}  Nd7 {[%clk 0:00:01]} 8. Bg5+ {[%clk 0:00:01]}  f6 {[%clk 0:00:01]} 9. Bh4 {[%clk 0:00:01]}  Nh6 {[%clk 0:00:01]} 10. Nf3 {[%clk 0:00:01]}  Nf5 {[%clk 0:00:01]} 11. Nxe5 {[%clk 0:00:01]}  Nxh4 {[%clk 0:00:01]} 12. Nf7+ {[%clk 0:00:01]}  Ke8 {[%clk 0:00:01]} 13. Nxh8 {[%clk 0:00:01]}  Bxh8 {[%clk 0:00:01]} 14. Bc4 {[%clk 0:00:01]}  c6 {[%clk 0:00:01]} 15. g3 {[%clk 0:00:01]}  Nf3 {[%clk 0:00:01]} 16. Be2 {[%clk 0:00:01]}  Nde5 {[%clk 0:00:01]} 17. Ne4 {[%clk 0:00:01]}  Ke7 {[%clk 0:00:01]} 18. Nd2 {[%clk 0:00:01]}  Nxd2 {[%clk 0:00:01]} 19. Rxd2 {[%clk 0:00:01]}  Be6 {[%clk 0:00:01]} 20. f4 {[%clk 0:00:01]}  Ng4 {[%clk 0:00:00]} 21. Bxg4 {[%clk 0:00:01]}  Bxg4 {[%clk 0:00:00]} 22. e4 {[%clk 0:00:01]}  Rd8 {[%clk 0:00:00]} 23. Rxd8 {[%clk 0:00:01]}  Kxd8 {[%clk 0:00:00]} 24. Kd2 {[%clk 0:00:01]}  Ke7 {[%clk 0:00:00]} 25. Ke3 {[%clk 0:00:01]}  Be6 {[%clk 0:00:00]} 26. b3 {[%clk 0:00:01]}  Bg7 {[%clk 0:00:00]} 27. h3 {[%clk 0:00:01]}  h5 {[%clk 0:00:00]} 28. Kf3 {[%clk 0:00:01]}  f5 {[%clk 0:00:00]} 29. Rh2 {[%clk 0:00:01]}  a5 {[%clk 0:00:00]} 30. c4 {[%clk 0:00:01]}  Bd4 {[%clk 0:00:00]} 31. e5 {[%clk 0:00:01]}  c5 {[%clk 0:00:00]} 32. h4 {[%clk 0:00:00]}  a4 {[%clk 0:00:00]} 33. Ke2 {[%clk 0:00:00]}  axb3 {[%clk 0:00:00]} 34. axb3 {[%clk 0:00:00]}  b5 {[%clk 0:00:00]} 35. Kd3 {[%clk 0:00:00]}  b4 {[%clk 0:00:00]} 36. Ra2 {[%clk 0:00:00]}  Bd7 {[%clk 0:00:00]} 37. Ra6 {[%clk 0:00:00]}  Kf7 {[%clk 0:00:00]} 38. Rf6+ {[%clk 0:00:00]}  Kg7 {[%clk 0:00:00]} 39. Rd6 {[%clk 0:00:00]}  Be8 {[%clk 0:00:00]} 40. Rxd4 {[%clk 0:00:00]}  cxd4 {[%clk 0:00:00]} 41. Kxd4 {[%clk 0:00:00]} 1-0


[Site "https://www.chess.com"]

[Event "Titled Tuesday Blitz May 2 Late 2023"]
[White "Harish, Neeraj"]
[Black "Ezat, Mohamed"]
[WhiteFideId "30958130"]
[BlackFideId "10600906"]
[WhiteElo "1965"]
[BlackElo "2386"]
[Result "0-1"]
[Round "01"]
[TimeControl "180+2"]
[Date "2023.05.02"]
[WhiteClock "0:00:00"]
[BlackClock "0:00:00"]

1. e4 {[%clk 0:00:01]}  c6 {[%clk 0:00:01]} 2. d4 {[%clk 0:00:01]}  d5 {[%clk 0:00:01]} 3. e5 {[%clk 0:00:01]}  c5 {[%clk 0:00:01]} 4. Nf3 {[%clk 0:00:01]}  Bg4 {[%clk 0:00:01]} 5. dxc5 {[%clk 0:00:01]}  e6 {[%clk 0:00:01]} 6. Be3 {[%clk 0:00:01]}  Ne7 {[%clk 0:00:01]} 7. c3 {[%clk 0:00:01]}  Nec6 {[%clk 0:00:01]} 8. Bd4 {[%clk 0:00:01]}  Nd7 {[%clk 0:00:01]} 9. Bb5 {[%clk 0:00:01]}  Bxc5 {[%clk 0:00:01]} 10. O-O {[%clk 0:00:01]}  O-O {[%clk 0:00:01]} 11. Bxc6 {[%clk 0:00:01]}  bxc6 {[%clk 0:00:01]} 12. Bxc5 {[%clk 0:00:01]}  Nxc5 {[%clk 0:00:01]} 13. Qd4 {[%clk 0:00:01]}  Bxf3 {[%clk 0:00:01]} 14. Qxc5 {[%clk 0:00:01]}  Qg5 {[%clk 0:00:01]} 15. g3 {[%clk 0:00:00]}  Qh6 {[%clk 0:00:00]} 16. h4 {[%clk 0:00:00]}  Rfc8 {[%clk 0:00:00]} 17. Na3 {[%clk 0:00:00]}  Be4 {[%clk 0:00:00]} 18. f3 {[%clk 0:00:00]}  Bd3 {[%clk 0:00:00]} 19. Rfd1 {[%clk 0:00:00]}  Be2 {[%clk 0:00:00]} 20. Re1 {[%clk 0:00:00]}  Bxf3 {[%clk 0:00:00]} 21. Qe3 {[%clk 0:00:00]}  Qxe3+ {[%clk 0:00:00]} 22. Rxe3 {[%clk 0:00:00]}  Be4 {[%clk 0:00:00]} 23. c4 {[%clk 0:00:00]}  Rcb8 {[%clk 0:00:00]} 24. b3 {[%clk 0:00:00]}  a5 {[%clk 0:00:00]} 25. cxd5 {[%clk 0:00:00]}  cxd5 {[%clk 0:00:00]} 26. Rc1 {[%clk 0:00:00]}  a4 {[%clk 0:00:00]} 27. bxa4 {[%clk 0:00:00]}  Rxa4 {[%clk 0:00:00]} 28. Nb5 {[%clk 0:00:00]}  h5 {[%clk 0:00:00]} 29. Nd6 {[%clk 0:00:00]}  Bg6 {[%clk 0:00:00]} 30. Re2 {[%clk 0:00:00]}  Rba8 {[%clk 0:00:00]} 31. Ra1 {[%clk 0:00:00]}  Ra3 {[%clk 0:00:00]} 32. Kg2 {[%clk 0:00:00]}  R8a4 {[%clk 0:00:00]} 33. Rb2 {[%clk 0:00:00]}  Kh7 {[%clk 0:00:00]} 34. Rg1 {[%clk 0:00:00]}  Rxa2 {[%clk 0:00:00]} 0-1


[Site "https://www.chess.com"]

[Event "Titled Tuesday Blitz May 2 Late 2023"]
[White "Marek, Matyas"]
[Black "Fernandez Madrid, Carlos"]
[WhiteFideId "335398"]
[BlackFideId "2206030"]
[WhiteElo "2279"]
[BlackElo "2082"]
[Result "1-0"]
[Round "01"]
[TimeControl "180+2"]
[Date "2023.05.02"]
[WhiteClock "0:00:01"]
[BlackClock "0:00:01"]

1. Nf3 {[%clk 0:00:01]}  d6 {[%clk 0:00:01]} 2. g3 {[%clk 0:00:01]}  g6 {[%clk 0:00:01]} 3. Bg2 {[%clk 0:00:01]}  Bg7 {[%clk 0:00:01]} 4. O-O {[%clk 0:00:01]}  c5 {[%clk 0:00:01]} 5. d3 {[%clk 0:00:01]}  Nf6 {[%clk 0:00:01]} 6. e4 {[%clk 0:00:01]}  O-O {[%clk 0:00:01]} 7. c3 {[%clk 0:00:01]}  Nc6 {[%clk 0:00:01]} 8. Re1 {[%clk 0:00:01]}  e5 {[%clk 0:00:01]} 9. Nbd2 {[%clk 0:00:01]}  Bg4 {[%clk 0:00:01]} 10. h3 {[%clk 0:00:01]}  Be6 {[%clk 0:00:01]} 11. Ng5 {[%clk 0:00:01]}  Qd7 {[%clk 0:00:01]} 12. Nxe6 {[%clk 0:00:01]}  fxe6 {[%clk 0:00:01]} 13. Nc4 {[%clk 0:00:01]}  b5 {[%clk 0:00:01]} 14. Ne3 {[%clk 0:00:01]}  Rae8 {[%clk 0:00:01]} 15. a4 {[%clk 0:00:01]}  a6 {[%clk 0:00:01]} 16. axb5 {[%clk 0:00:01]}  axb5 {[%clk 0:00:01]} 17. Qb3 {[%clk 0:00:01]}  Nd8 {[%clk 0:00:01]} 18. Ra6 {[%clk 0:00:01]}  Nh5 {[%clk 0:00:01]} 19. Rb6 {[%clk 0:00:01]}  Qf7 {[%clk 0:00:01]} 20. Rf1 {[%clk 0:00:01]}  c4 {[%clk 0:00:01]} 21. Qxb5 {[%clk 0:00:01]}  cxd3 {[%clk 0:00:01]} 22. Rxd6 {[%clk 0:00:01]}  Bh6 {[%clk 0:00:01]} 23. Qxd3 {[%clk 0:00:01]}  Nb7 {[%clk 0:00:01]} 24. Rd7 {[%clk 0:00:01]}  Re7 {[%clk 0:00:01]} 25. Rxe7 {[%clk 0:00:01]}  Qxe7 {[%clk 0:00:01]} 26. b4 {[%clk 0:00:01]}  Nf4 {[%clk 0:00:01]} 27. gxf4 {[%clk 0:00:01]}  exf4 {[%clk 0:00:01]} 28. Ng4 {[%clk 0:00:01]}  Bg7 {[%clk 0:00:01]} 29. e5 {[%clk 0:00:01]}  h5 {[%clk 0:00:01]} 30. Nf6+ {[%clk 0:00:01]}  Bxf6 {[%clk 0:00:01]} 31. exf6 {[%clk 0:00:01]}  Qxf6 {[%clk 0:00:01]} 32. Bxb7 {[%clk 0:00:01]}  f3 {[%clk 0:00:01]} 33. Bxf3 {[%clk 0:00:01]}  Qxf3 {[%clk 0:00:01]} 34. Qxf3 {[%clk 0:00:01]}  Rxf3 {[%clk 0:00:01]} 35. Be3 {[%clk 0:00:01]} 1-0


[Site "https://www.chess.com"]

[Event "Titled Tuesday Blitz May 2 Late 2023"]
[White "Phillips, Rene"]
[Black "Vlassov, Nikolai"]
[WhiteFideId "2056275"]
[BlackFideId "4103360"]
[WhiteElo "1852"]
[BlackElo "2324"]
[Result "0-1"]
[Round "01"]
[TimeControl "180+2"]
[Date "2023.05.02"]
[WhiteClock "0:00:00"]
[BlackClock "0:00:01"]

1. Nf3 {[%clk 0:00:01]}  c5 {[%clk 0:00:01]} 2. b3 {[%clk 0:00:01]}  Nc6 {[%clk 0:00:01]} 3. e3 {[%clk 0:00:01]}  Nf6 {[%clk 0:00:01]} 4. Bb2 {[%clk 0:00:01]}  Qc7 {[%clk 0:00:01]} 5. Bb5 {[%clk 0:00:01]}  a6 {[%clk 0:00:01]} 6. Be2 {[%clk 0:00:01]}  e5 {[%clk 0:00:01]} 7. d3 {[%clk 0:00:01]}  d5 {[%clk 0:00:01]} 8. Nbd2 {[%clk 0:00:01]}  Bd6 {[%clk 0:00:01]} 9. e4 {[%clk 0:00:01]}  d4 {[%clk 0:00:01]} 10. a4 {[%clk 0:00:01]}  O-O {[%clk 0:00:01]} 11. O-O {[%clk 0:00:01]}  Bd7 {[%clk 0:00:01]} 12. Nc4 {[%clk 0:00:01]}  b5 {[%clk 0:00:01]} 13. Ncd2 {[%clk 0:00:01]}  Nh5 {[%clk 0:00:01]} 14. g3 {[%clk 0:00:01]}  g6 {[%clk 0:00:01]} 15. Re1 {[%clk 0:00:01]}  Ng7 {[%clk 0:00:01]} 16. Nh4 {[%clk 0:00:01]}  f5 {[%clk 0:00:01]} 17. axb5 {[%clk 0:00:01]}  axb5 {[%clk 0:00:01]} 18. Rxa8 {[%clk 0:00:01]}  Rxa8 {[%clk 0:00:01]} 19. exf5 {[%clk 0:00:01]}  gxf5 {[%clk 0:00:01]} 20. Bf3 {[%clk 0:00:01]}  Rf8 {[%clk 0:00:01]} 21. Bd5+ {[%clk 0:00:01]}  Kh8 {[%clk 0:00:01]} 22. Qf3 {[%clk 0:00:01]}  Ne7 {[%clk 0:00:01]} 23. Qg2 {[%clk 0:00:00]}  Nxd5 {[%clk 0:00:01]} 24. Qxd5 {[%clk 0:00:00]}  Bc6 {[%clk 0:00:01]} 0-1


[Site "https://www.chess.com"]